fUST/lending_fUST_20250619
["ID","MTS","AMOUNT","RATE_DAILY","PERIOD"]
[366484826,1750284636883,-460.0,0.00022191,6]
[366484827,1750284636893,-460.0,0.00022191,6]
[366484828,1750284636902,-460.0,0.00022191,6]
[366484829,1750284636911,-400.0,0.00022191,6]
[366484830,1750284636921,-273.7180238,0.00022191,6]
[366484831,1750284636936,-126.2819762,0.00022191,6]
[366484832,1750284636945,-569.92451661,0.00022191,6]
[366484833,1750284636955,-460.0,0.00022191,6]
[366484834,1750284636964,-460.0,0.00022191,6]
[366484835,1750284636974,-460.0,0.00022191,6]
[366484836,1750284636985,-716.16,0.00022191,6]
[366484837,1750284636995,-400.0,0.00022191,6]
[366484838,1750284637005,-400.0,0.00022191,6]
[366484839,1750284637015,-460.0,0.00022191,6]
[366484840,1750284637025,-460.0,0.00022191,6]
[366484841,1750284637034,-1124.8,0.00022191,6]
[366484842,1750284637043,-460.0,0.00022191,6]
[366484843,1750284637052,-460.0,0.00022191,6]
[366484844,1750284637062,-400.0,0.00022191,6]
[366484845,1750284637072,-654.41,0.00022191,6]
[366484846,1750284637081,-460.0,0.00022191,6]
[366484847,1750284637093,-560.0,0.00022191,6]
[366484848,1750284637103,-703.2,0.00022191,6]
[366484849,1750284637112,-868.61,0.00022191,6]
[366484850,1750284637122,-460.0,0.00022191,6]
[366484851,1750284637135,-625.09,0.00022191,6]
[366484852,1750284637145,-460.0,0.00022191,6]
[366484853,1750284637155,-4118.98,0.00022191,6]
[366484854,1750284637166,-460.0,0.00022191,6]
[366484855,1750284637324,-460.0,0.00022191,6]
[366484856,1750284637334,-674.24,0.00022191,6]
[366484857,1750284637344,-460.0,0.00022191,6]
[366484858,1750284637354,-460.0,0.00022191,6]
[366484859,1750284637363,-460.0,0.00022191,6]
[366484860,1750284637372,-460.0,0.00022191,6]
[366484861,1750284637381,-460.0,0.00022191,6]
[366484862,1750284637391,-3710.23,0.00022191,6]
[366484863,1750284637400,-763.45,0.00022191,6]
[366484864,1750284637410,-23.08278955,0.00022191,6]
[366484865,1750284637423,-262.5,0.00022191,6]
[366484866,1750284637434,-174.41721045,0.00022191,6]
[366484867,1750284637443,-460.0,0.00022191,6]
[366484868,1750284637453,-316.99173509,0.00022191,6]
[366484869,1750284637464,-143.00826491,0.00022191,6]
[366484870,1750284637474,-611.96,0.00022191,6]
[366484871,1750284637485,-1753.26934244,0.00022191,6]
[366484890,1750284638122,-430.0,0.00021917,6]
[366484891,1750284638133,-440.0,0.00021917,6]
[366484892,1750284638143,-460.0,0.00021917,6]
[366484893,1750284638152,-264.54065756,0.00022191,6]
[366484894,1750284638162,-1455.07,0.00022191,6]
[366484895,1750284638171,-844.80574715,0.00022191,6]
[366484896,1750284638238,-1849.82425285,0.00022191,6]
[366484897,1750284638249,-1534.6,0.00022191,6]
[366484898,1750284638259,-400.0,0.00022191,6]
[366484899,1750284638269,-460.0,0.00022191,6]
[366484900,1750284638279,-460.0,0.00022191,6]
[366484901,1750284638288,-400.0,0.00022191,6]
[366484902,1750284638298,-473.47,0.00022191,6]
[366484903,1750284638308,-460.0,0.00022191,6]
[366484904,1750284638317,-626.77,0.00022191,6]
[366484905,1750284638327,-460.0,0.00022191,6]
[366484906,1750284638337,-530.94,0.00022191,6]
[366484907,1750284638346,-460.0,0.00022191,6]
[366484908,1750284638357,-460.0,0.00022191,6]
[366484909,1750284638367,-460.0,0.00022191,6]
[366484910,1750284638377,-966.66,0.00022191,6]
[366484911,1750284638387,-634.61,0.00022191,6]
[366484912,1750284638396,-460.0,0.00022191,6]
[366484913,1750284638406,-1208.82,0.00022191,6]
[366484914,1750284638415,-460.0,0.00022191,6]
[366484915,1750284638425,-460.0,0.00022191,6]
[366484916,1750284638435,-460.0,0.00022191,6]
[366484917,1750284638444,-400.0,0.00022191,6]
[366484918,1750284638454,-460.0,0.00022191,6]
[366484919,1750284638464,-460.0,0.00022191,6]
[366484920,1750284638474,-460.0,0.00022191,6]
[366484921,1750284638483,-460.0,0.00022191,6]
[366484922,1750284638492,-460.0,0.00022191,6]
[366484923,1750284638502,-460.0,0.00022191,6]
[366484924,1750284638511,-400.0,0.00022191,6]
[366484925,1750284638521,-662.88,0.00022191,6]
[366484926,1750284638530,-543.74023609,0.00022191,6]
[366484927,1750284638540,-460.0,0.00022191,6]
[366484928,1750284638549,-460.0,0.00022191,6]
[366484929,1750284638559,-1833.98,0.00022191,6]
[366484930,1750284638568,-562.99,0.00022191,6]
[366484931,1750284638578,-568.72,0.00022191,6]
[366484932,1750284638587,-540.0,0.00022191,6]
[366484933,1750284638596,-540.0,0.00022191,6]
[366484934,1750284638606,-460.0,0.00022191,6]
[366484935,1750284638616,-460.0,0.00022191,6]
[366484936,1750284638626,-1477.08,0.00022191,6]
[366484937,1750284638635,-460.0,0.00022191,6]
[366484938,1750284638644,-460.0,0.00022191,6]
[366484939,1750284638654,-1384.66,0.00022191,6]
[366484940,1750284638664,-320.98855003,0.00022191,6]
[366484941,1750284638673,-460.0,0.00022191,6]
[366484942,1750284638682,-460.0,0.00022191,6]
[366484943,1750284638692,-391.72059834,0.00022191,6]
[366484944,1750284638700,-460.0,0.00022191,6]
[366484945,1750284638709,-460.0,0.00022191,6]
[366484946,1750284638719,-1108.01,0.00022191,6]
[366484947,1750284638728,-878.9,0.00022191,6]
[366484948,1750284638738,-535.31,0.00022191,6]
[366484949,1750284638748,-400.0,0.00022191,6]
[366484950,1750284638758,-410.0,0.00022191,6]
[366484951,1750284638767,-460.0,0.00022191,6]
[366484952,1750284638777,-460.0,0.00022191,6]
[366484953,1750284638787,-1993.22,0.00022191,6]
[366484954,1750284638797,-460.0,0.00022191,6]
[366484955,1750284638806,-1992.3,0.00022191,6]
[366484956,1750284638816,-2122.37,0.00022191,6]
[366484957,1750284638826,-460.0,0.00022191,6]
[366484958,1750284638835,-460.0,0.00022191,6]
[366484959,1750284638845,-460.0,0.00022191,6]
[366484960,1750284638855,-1799.62,0.00022191,6]
[366484961,1750284638865,-460.0,0.00022191,6]
[366484962,1750284638874,-282.03436861,0.00022191,6]
[366484963,1750284638884,-460.0,0.00022191,6]
[366484964,1750284638894,-2911.34,0.00022191,6]
[366484965,1750284638904,-476.31,0.00022191,6]
[366484966,1750284638914,-290.0,0.00022191,6]
[366484967,1750284638923,-3406.52,0.00022191,6]
[366484968,1750284638933,-460.0,0.00022191,6]
[366484969,1750284638942,-514.55,0.00022191,6]
[366484970,1750284638953,-492.22,0.00022191,6]
[366484971,1750284638963,-1027.93435655,0.00022314,7]
[366484972,1750284638973,-365.5483814,0.00022356,2]
[366484973,1750284638982,-365.5483814,0.00022356,2]
[366484974,1750284638993,-365.5483814,0.00022356,2]
[366484975,1750284639003,-365.5483814,0.00022356,2]
[366484976,1750284639012,-730.8246382,0.00022356,2]
[366484977,1750284639022,-150.86069339,0.00022369,2]
[366484978,1750284639031,-420.0,0.00022392,2]
[366484979,1750284639040,-420.0,0.00022392,2]
[366484980,1750284639049,-1027.93435655,0.00022452,7]
[366484981,1750284639058,-460.0,0.00022465,6]
[366484982,1750284639068,-460.0,0.00022465,6]
[366484983,1750284639077,-460.0,0.00022465,6]
[366484984,1750284639090,-460.0,0.00022465,6]
[366484985,1750284639105,-460.0,0.00022465,6]
[366484986,1750284639116,-430.0,0.00022465,6]
[366484987,1750284639126,-460.0,0.00022465,6]
[366484988,1750284639137,-460.0,0.00022465,6]
[366484989,1750284639146,-460.0,0.00022465,6]
[366484990,1750284639156,-460.0,0.00022465,6]
[366484991,1750284639166,-460.0,0.00022465,6]
[366484992,1750284639177,-460.0,0.00022465,6]
[366484993,1750284639187,-581.23,0.00022465,6]
[366484994,1750284639197,-460.0,0.00022465,6]
[366484995,1750284639206,-460.0,0.00022465,6]
[366484996,1750284639216,-460.0,0.00022465,6]
[366484997,1750284639225,-658.34,0.00022465,6]
[366484998,1750284639235,-460.0,0.00022465,6]
[366484999,1750284639245,-658.06,0.00022465,6]
[366485000,1750284639255,-460.0,0.00022465,6]
[366485001,1750284639265,-460.0,0.00022465,6]
[366485002,1750284639274,-460.0,0.00022465,6]
[366485003,1750284639283,-460.0,0.00022465,6]
[366485004,1750284639293,-460.0,0.00022465,6]
[366485005,1750284639302,-460.0,0.00022465,6]
[366485006,1750284639312,-460.0,0.00022465,6]
[366485007,1750284639322,-460.0,0.00022465,6]
[366485008,1750284639331,-460.0,0.00022465,6]
[366485009,1750284639341,-716.16,0.00022465,6]
[366485010,1750284639350,-460.0,0.00022465,6]
[366485011,1750284639360,-654.41,0.00022465,6]
[366485012,1750284639369,-703.2,0.00022465,6]
[366485013,1750284639379,-460.0,0.00022465,6]
[366485014,1750284639388,-625.09,0.00022465,6]
[366485015,1750284639398,-460.0,0.00022465,6]
[366485016,1750284639407,-4118.98,0.00022465,6]
[366485017,1750284639416,-370.0,0.00022465,6]
[366485018,1750284639426,-460.0,0.00022465,6]
[366485019,1750284639436,-674.24,0.00022465,6]
[366485020,1750284639446,-460.0,0.00022465,6]
[366485021,1750284639456,-460.0,0.00022465,6]
[366485022,1750284639466,-460.0,0.00022465,6]
[366485023,1750284639476,-460.0,0.00022465,6]
[366485024,1750284639486,-460.0,0.00022465,6]
[366485025,1750284639495,-3710.23,0.00022465,6]
[366485027,1750284639504,-763.45,0.00022465,6]
[366485029,1750284639514,-460.0,0.00022465,6]
[366485030,1750284639523,-460.0,0.00022465,6]
[366485031,1750284639533,-611.96,0.00022465,6]
[366485032,1750284639543,-2017.81,0.00022465,6]
[366485033,1750284639552,-1455.07,0.00022465,6]
[366485034,1750284639562,-2694.63,0.00022465,6]
[366485035,1750284639571,-1534.6,0.00022465,6]
[366485036,1750284639581,-547.85,0.00022465,6]
[366485038,1750284639591,-460.0,0.00022465,6]
[366485040,1750284639600,-473.47,0.00022465,6]
[366485042,1750284639610,-460.0,0.00022465,6]
[366485044,1750284639620,-626.77,0.00022465,6]
[366485046,1750284639631,-460.0,0.00022465,6]
[366485048,1750284639640,-460.0,0.00022465,6]
[366485050,1750284639650,-460.0,0.00022465,6]
[366485052,1750284639660,-966.66,0.00022465,6]
[366485054,1750284639670,-634.61,0.00022465,6]
[366485056,1750284639680,-460.0,0.00022465,6]
[366485058,1750284639688,-1208.82,0.00022465,6]
[366485060,1750284639698,-460.0,0.00022465,6]
[366485062,1750284639707,-460.0,0.00022465,6]
[366485064,1750284639717,-460.0,0.00022465,6]
[366485068,1750284639728,-460.0,0.00022465,6]
[366485070,1750284639738,-460.0,0.00022465,6]
[366485073,1750284639750,-218.92,0.00022465,6]
[366485075,1750284639760,-460.0,0.00022465,6]
[366485077,1750284639770,-460.0,0.00022465,6]
[366485079,1750284639779,-662.88,0.00022465,6]
[366485081,1750284639789,-460.0,0.00022465,6]
[366485084,1750284639798,-460.0,0.00022465,6]
[366485087,1750284639807,-1833.98,0.00022465,6]
[366485088,1750284639817,-562.99,0.00022465,6]
[366485090,1750284639827,-568.72,0.00022465,6]
[366485091,1750284639837,-460.0,0.00022465,6]
[366485092,1750284639847,-460.0,0.00022465,6]
[366485094,1750284639857,-1477.08,0.00022465,6]
[366485096,1750284639867,-460.0,0.00022465,6]
[366485098,1750284639876,-460.0,0.00022465,6]
[366485099,1750284639886,-1384.66,0.00022465,6]
[366485100,1750284639896,-460.0,0.00022465,6]
[366485101,1750284639906,-460.0,0.00022465,6]
[366485102,1750284639915,-460.0,0.00022465,6]
[366485104,1750284639925,-246.44731964,0.00022465,6]
[366485105,1750284639934,-535.31,0.00022465,6]
[366485108,1750284639943,-878.9,0.00022465,6]
[366485110,1750284639953,-460.0,0.00022465,6]
[366485112,1750284639962,-1993.22,0.00022465,6]
[366485114,1750284639973,-460.0,0.00022465,6]
[366485116,1750284639982,-1992.3,0.00022465,6]
[366485118,1750284639992,-2122.37,0.00022465,6]
[366485120,1750284640002,-460.0,0.00022465,6]
[366485122,1750284640012,-460.0,0.00022465,6]
[366485124,1750284640022,-1799.62,0.00022465,6]
[366485126,1750284640031,-460.0,0.00022465,6]
[366485127,1750284640040,-460.0,0.00022465,6]
[366485130,1750284640050,-2911.34,0.00022465,6]
[366485132,1750284640071,-476.31,0.00022465,6]
[366485135,1750284640080,-3406.52,0.00022465,6]
[366485138,1750284640093,-460.0,0.00022465,6]
[366485141,1750284640104,-514.55,0.00022465,6]
[366485144,1750284640114,-500.0,0.00022473,2]
[366485147,1750284640124,-214.73968683,0.0002248,2]
[366485149,1750284640135,-260.0,0.00022502,2]
[366485152,1750284640144,-1027.93435655,0.0002259,7]
[366485155,1750284640153,-951.75,0.0002263,2]
[366485157,1750284640163,-248.0,0.00022646,2]
[366485159,1750284640172,-5000.0,0.00022668,2]
[366485161,1750284640182,-1000.0,0.00022721,2]
[366485163,1750284640191,-1027.93435655,0.00022728,7]
[366485165,1750284640201,-460.0,0.00022739,6]
[366485167,1750284640211,-460.0,0.00022739,6]
[366485169,1750284640220,-460.0,0.00022739,6]
[366485170,1750284640230,-313.88125527,0.00022739,6]
[366485173,1750284640240,-460.0,0.00022739,6]
[366485175,1750284640250,-460.0,0.00022739,6]
[366485177,1750284640260,-460.0,0.00022739,6]
[366485179,1750284640270,-424.65257834,0.00022739,6]
[366485181,1750284640280,-460.0,0.00022739,6]
[366485183,1750284640289,-460.0,0.00022739,6]
[366485185,1750284640299,-150.80122827,0.00022739,6]
[366485187,1750284640308,-581.23,0.00022739,6]
[366485189,1750284640318,-460.0,0.00022739,6]
[366485191,1750284640328,-460.0,0.00022739,6]
[366485193,1750284640338,-460.0,0.00022739,6]
[366485195,1750284640348,-658.34,0.00022739,6]
[366485197,1750284640357,-460.0,0.00022739,6]
[366485199,1750284640367,-658.06,0.00022739,6]
[366485215,1750284640376,-460.0,0.00022739,6]
[366485218,1750284640536,-400.0,0.00022739,6]
[366485220,1750284640545,-411.10680584,0.00022739,6]
[366485222,1750284640555,-460.0,0.00022739,6]
[366485224,1750284640565,-566.70190651,0.00022739,6]
[366485226,1750284640575,-460.0,0.00022739,6]
[366485228,1750284640585,-460.0,0.00022739,6]
[366485230,1750284640595,-460.0,0.00022739,6]
[366485232,1750284640605,-460.0,0.00022739,6]
[366485234,1750284640615,-716.16,0.00022739,6]
[366485236,1750284640625,-433.40782733,0.00022739,6]
[366485238,1750284640635,-654.41,0.00022739,6]
[366485240,1750284640645,-703.2,0.00022739,6]
[366485241,1750284640655,-460.0,0.00022739,6]
[366485242,1750284640664,-625.09,0.00022739,6]
[366485243,1750284640674,-460.0,0.00022739,6]
[366485244,1750284640684,-4118.98,0.00022739,6]
[366485245,1750284640694,-460.0,0.00022739,6]
[366485246,1750284640704,-674.24,0.00022739,6]
[366485247,1750284640713,-460.0,0.00022739,6]
[366485248,1750284640723,-460.0,0.00022739,6]
[366485249,1750284640733,-460.0,0.00022739,6]
[366485250,1750284640743,-460.0,0.00022739,6]
[366485251,1750284640752,-460.0,0.00022739,6]
[366485252,1750284640762,-3710.23,0.00022739,6]
[366485253,1750284640772,-763.45,0.00022739,6]
[366485254,1750284640782,-460.0,0.00022739,6]
[366485255,1750284640792,-460.0,0.00022739,6]
[366485256,1750284640801,-611.96,0.00022739,6]
[366485257,1750284640811,-2017.81,0.00022739,6]
[366485258,1750284640821,-1455.07,0.00022739,6]
[366485259,1750284640831,-2694.63,0.00022739,6]
[366485260,1750284640841,-1534.6,0.00022739,6]
[366485261,1750284640850,-460.0,0.00022739,6]
[366485262,1750284640860,-473.47,0.00022739,6]
[366485263,1750284640870,-410.0,0.00022739,6]
[366485264,1750284640879,-626.77,0.00022739,6]
[366485265,1750284640889,-460.0,0.00022739,6]
[366485266,1750284640898,-460.0,0.00022739,6]
[366485267,1750284640908,-460.0,0.00022739,6]
[366485268,1750284640917,-966.66,0.00022739,6]
[366485269,1750284640927,-634.61,0.00022739,6]
[366485270,1750284640936,-360.0,0.00022739,6]
[366485271,1750284640946,-1208.82,0.00022739,6]
[366485272,1750284640955,-460.0,0.00022739,6]
[366485273,1750284640965,-460.0,0.00022739,6]
[366485274,1750284640974,-460.0,0.00022739,6]
[366485275,1750284640983,-460.0,0.00022739,6]
[366485276,1750284640994,-460.0,0.00022739,6]
[366485277,1750284641003,-460.0,0.00022739,6]
[366485278,1750284641013,-460.0,0.00022739,6]
[366485279,1750284641022,-662.88,0.00022739,6]
[366485280,1750284641031,-460.0,0.00022739,6]
[366485281,1750284641040,-460.0,0.00022739,6]
[366485282,1750284641050,-1833.98,0.00022739,6]
[366485283,1750284641059,-562.99,0.00022739,6]
[366485284,1750284641069,-568.72,0.00022739,6]
[366485285,1750284641078,-460.0,0.00022739,6]
[366485286,1750284641091,-460.0,0.00022739,6]
[366485287,1750284641102,-1477.08,0.00022739,6]
[366485288,1750284641112,-460.0,0.00022739,6]
[366485289,1750284641121,-460.0,0.00022739,6]
[366485290,1750284641131,-1384.66,0.00022739,6]
[366485291,1750284641141,-460.0,0.00022739,6]
[366485292,1750284641150,-460.0,0.00022739,6]
[366485293,1750284641159,-460.0,0.00022739,6]
[366485294,1750284641170,-535.31,0.00022739,6]
[366485295,1750284641180,-878.9,0.00022739,6]
[366485296,1750284641190,-460.0,0.00022739,6]
[366485297,1750284641199,-1993.22,0.00022739,6]
[366485298,1750284641208,-1992.3,0.00022739,6]
[366485299,1750284641218,-2122.37,0.00022739,6]
[366485300,1750284641227,-460.0,0.00022739,6]
[366485301,1750284641236,-547.98626068,0.00022739,6]
[366485302,1750284641245,-1799.62,0.00022739,6]
[366485303,1750284641254,-570.56,0.00022739,6]
[366485304,1750284641264,-460.0,0.00022739,6]
[366485305,1750284641273,-2911.34,0.00022739,6]
[366485306,1750284641282,-476.31,0.00022739,6]
[366485307,1750284641291,-3406.52,0.00022739,6]
[366485308,1750284641300,-460.0,0.00022739,6]
[366485309,1750284641309,-514.55,0.00022739,6]
[366485310,1750284641318,-153.0,0.00022767,2]
[366485311,1750284641328,-1027.93435655,0.00022866,8]
[366485312,1750284641337,-214.73968683,0.00022887,2]
[366485313,1750284641346,-1027.93435655,0.00023003,8]
[366485314,1750284641355,-460.0,0.00023013,6]
[366485315,1750284641364,-420.0,0.00023013,6]
[366485316,1750284641374,-460.0,0.00023013,6]
[366485317,1750284641383,-460.0,0.00023013,6]
[366485318,1750284641393,-460.0,0.00023013,6]
[366485319,1750284641402,-460.0,0.00023013,6]
[366485320,1750284641411,-460.0,0.00023013,6]
[366485321,1750284641421,-581.23,0.00023013,6]
[366485322,1750284641430,-308.8452963,0.00023013,6]
[366485323,1750284641438,-460.0,0.00023013,6]
[366485324,1750284641447,-460.0,0.00023013,6]
[366485325,1750284641457,-658.34,0.00023013,6]
[366485326,1750284641467,-460.0,0.00023013,6]
[366485327,1750284641477,-658.06,0.00023013,6]
[366485328,1750284641487,-460.0,0.00023013,6]
[366485329,1750284641496,-460.0,0.00023013,6]
[366485330,1750284641505,-460.0,0.00023013,6]
[366485331,1750284641515,-460.0,0.00023013,6]
[366485332,1750284641525,-460.0,0.00023013,6]
[366485333,1750284641534,-460.0,0.00023013,6]
[366485334,1750284641543,-716.16,0.00023013,6]
[366485335,1750284641553,-654.41,0.00023013,6]
[366485336,1750284641562,-703.2,0.00023013,6]
[366485337,1750284641572,-460.0,0.00023013,6]
[366485338,1750284641582,-625.09,0.00023013,6]
[366485339,1750284641592,-460.0,0.00023013,6]
[366485340,1750284641601,-4118.98,0.00023013,6]
[366485341,1750284641610,-460.0,0.00023013,6]
[366485342,1750284641619,-674.24,0.00023013,6]
[366485343,1750284641630,-460.0,0.00023013,6]
[366485344,1750284641639,-460.0,0.00023013,6]
[366485345,1750284641649,-460.0,0.00023013,6]
[366485346,1750284641658,-460.0,0.00023013,6]
[366485347,1750284641667,-460.0,0.00023013,6]
[366485348,1750284641676,-3710.23,0.00023013,6]
[366485349,1750284641686,-763.45,0.00023013,6]
[366485350,1750284641696,-460.0,0.00023013,6]
[366485351,1750284641706,-460.0,0.00023013,6]
[366485352,1750284641715,-611.96,0.00023013,6]
[366485353,1750284641724,-2017.81,0.00023013,6]
[366485354,1750284641733,-1455.07,0.00023013,6]
[366485355,1750284641744,-2694.63,0.00023013,6]
[366485356,1750284641754,-1534.6,0.00023013,6]
[366485357,1750284641764,-460.0,0.00023013,6]
[366485358,1750284641773,-473.47,0.00023013,6]
[366485359,1750284641783,-626.77,0.00023013,6]
[366485360,1750284641792,-460.0,0.00023013,6]
[366485361,1750284641802,-460.0,0.00023013,6]
[366485362,1750284641812,-966.66,0.00023013,6]
[366485363,1750284641822,-460.0,0.00023013,6]
[366485364,1750284641831,-634.61,0.00023013,6]
[366485365,1750284641841,-1208.82,0.00023013,6]
[366485366,1750284641851,-460.0,0.00023013,6]
[366485367,1750284641860,-460.0,0.00023013,6]
[366485368,1750284641870,-460.0,0.00023013,6]
[366485369,1750284641879,-460.0,0.00023013,6]
[366485370,1750284641889,-460.0,0.00023013,6]
[366485371,1750284641899,-460.0,0.00023013,6]
[366485372,1750284641909,-460.0,0.00023013,6]
[366485373,1750284641919,-662.88,0.00023013,6]
[366485374,1750284641929,-460.0,0.00023013,6]
[366485375,1750284641939,-291.46070835,0.00023013,6]
[366485376,1750284641949,-1833.98,0.00023013,6]
[366485377,1750284641959,-562.99,0.00023013,6]
[366485378,1750284641968,-568.72,0.00023013,6]
[366485379,1750284641978,-460.0,0.00023013,6]
[366485380,1750284641989,-460.0,0.00023013,6]
[366485381,1750284641999,-1477.08,0.00023013,6]
[366485382,1750284642009,-437.62072255,0.00023013,6]
[366485383,1750284642019,-460.0,0.00023013,6]
[366485384,1750284642029,-1384.66,0.00023013,6]
[366485385,1750284642039,-460.0,0.00023013,6]
[366485386,1750284642048,-460.0,0.00023013,6]
[366485387,1750284642058,-460.0,0.00023013,6]
[366485388,1750284642067,-535.31,0.00023013,6]
[366485389,1750284642078,-878.9,0.00023013,6]
[366485390,1750284642089,-460.0,0.00023013,6]
[366485391,1750284642102,-1993.22,0.00023013,6]
[366485392,1750284642111,-1992.3,0.00023013,6]
[366485393,1750284642121,-2122.37,0.00023013,6]
[366485394,1750284642131,-460.0,0.00023013,6]
[366485395,1750284642141,-1799.62,0.00023013,6]
[366485396,1750284642150,-2911.34,0.00023013,6]
[366485397,1750284642159,-476.31,0.00023013,6]
[366485398,1750284642168,-3406.52,0.00023013,6]
[366485399,1750284642178,-460.0,0.00023013,6]
[366485400,1750284642188,-514.55,0.00023013,6]
[366485401,1750284642198,-260.0,0.00023019,2]
[366485402,1750284642207,-1000.0,0.00023021,2]
[366485403,1750284642216,-406.0,0.00023037,2]
[366485404,1750284642226,-600.0,0.00023071,2]
[366485405,1750284642236,-500.0,0.00023071,2]
[366485406,1750284642245,-500.0,0.00023073,2]
[366485407,1750284642255,-500.0,0.00023073,2]
[366485408,1750284642264,-502.67521021,0.00023073,2]
[366485409,1750284642274,-500.0,0.00023073,2]
[366485410,1750284642284,-500.0,0.00023073,2]
[366485411,1750284642294,-48481.5,0.000231,7]
[366485412,1750284642303,-429.48,0.000231,7]
[366485413,1750284642313,-51411.8,0.000231,2]
[366485414,1750284642322,-151.0,0.000231,7]
[366485415,1750284642332,-272.41321,0.000231,7]
[366485416,1750284642341,-151.0,0.000231,7]
[366485417,1750284642351,-151.0,0.000231,7]
[366485418,1750284642360,-151.0,0.000231,2]
[366485419,1750284642369,-151.0,0.000231,2]
[366485420,1750284642379,-162.365828,0.000231,7]
[366485421,1750284642388,-162.365828,0.000231,7]
[366485422,1750284642397,-12542.39314967,0.000231,7]
[366485423,1750284642407,-151.0,0.000231,7]
[366485424,1750284642417,-151.0,0.000231,7]
[366485425,1750284642426,-151.0,0.000231,7]
[366485426,1750284642435,-151.0,0.000231,7]
[366485427,1750284642444,-151.0,0.000231,7]
[366485428,1750284642454,-151.0,0.000231,7]
[366485429,1750284642464,-151.0,0.000231,7]
[366485430,1750284642473,-151.0,0.000231,7]
[366485431,1750284642482,-151.0,0.000231,7]
[366485432,1750284642492,-151.0,0.000231,7]
[366485433,1750284642502,-151.0,0.000231,7]
[366485434,1750284642511,-151.0,0.000231,7]
[366485435,1750284642520,-1027.93435655,0.00023141,8]
[366485436,1750284642530,-293.85068442,0.0002318,2]
[366485437,1750284642539,-1500.0,0.00023268,2]
[366485439,1750284642549,-150.86069339,0.00023274,2]
[366485440,1750284642558,-1027.93435655,0.00023279,8]
[366485441,1750284642567,-160.0,0.00023286,2]
[366485443,1750284642576,-460.0,0.00023287,6]
[366485444,1750284642586,-460.0,0.00023287,6]
[366485445,1750284642595,-400.0,0.00023287,6]
[366485446,1750284642605,-151.0,0.00023287,7]
[366485447,1750284642614,-460.0,0.00023287,6]
[366485448,1750284642623,-151.0,0.00023287,7]
[366485449,1750284642633,-460.0,0.00023287,6]
[366485450,1750284642642,-474.94745615,0.00023287,6]
[366485451,1750284642652,-151.0,0.00023287,7]
[366485452,1750284642661,-581.23,0.00023287,6]
[366485453,1750284642671,-460.0,0.00023287,6]
[366485455,1750284642680,-460.0,0.00023287,6]
[366485457,1750284642689,-658.34,0.00023287,6]
[366485459,1750284642698,-460.0,0.00023287,6]
[366485461,1750284642707,-369.166354,0.00023287,7]
[366485463,1750284642716,-369.166354,0.00023287,7]
[366485464,1750284642726,-658.06,0.00023287,6]